[Event "European Corporate Championship 2022"]
[Site "Rotterdam"]
[Date "2022.06.18"]
[Round "2.15"]
[White "Malachi, Avraham"]
[Black "Lie, Michael"]
[Result "1/2-1/2"]
[ECO "B77"]
[WhiteElo "1997"]
[BlackElo "1798"]
[Annotator "NA RC"]
[PlyCount "59"]
[EventDate "2022.06.18"]
[EventType "team-tourn"]
[EventCountry "NED"]
[SourceTitle "playchess.com"]
[Source "ChessBase"]
[SourceQuality "1"]
[TimeControl "900+5"]

1. e4 {[%emt 0:00:03]} c5 {[%emt 0:00:01]} 2. Nf3 {[%emt 0:00:01]} g6 {[%emt 0:00:01]} 3. d4 {[%emt 0:00:02]} cxd4 {[%emt 0:00:02]} 4. Nxd4 {[%emt 0:00:01]} Nc6 {[%emt 0:00:01]} 5. Nc3 {[%emt 0:00:11]} Bg7 {[%emt 0:00:03]} 6. Be3 {[%emt 0:00:01]} Nf6 {[%emt 0:00:01]} 7. Bc4 {[%emt 0:00:12]} O-O {[%emt 0:00:04]} 8. Bb3 {[%emt 0:00:40]} a5 {[%emt 0:00:05]} 9. f3 {[%emt 0:01:03]} Nxd4 {[%emt 0:04:43]} 10. Bxd4 {[%emt 0:00:10]} d6 {[%emt 0:00:04]} 11. Qd2 {[%emt 0:00:48]} Bd7 {[%emt 0:00:09]} 12. a4 {[%emt 0:00:13]} Bc6 {[%emt 0:00:03]} 13. O-O-O {[%emt 0:01:24]} Nd7 {[%emt 0:00:03]} 14. h4 {[%emt 0:00:42]} h6 {[%emt 0:04:14]} 15. f4 {[%emt 0:03:21]} Nc5 {[%emt 0:03:58]} 16. h5 {[%emt 0:00:57]} e5 {[%emt 0:01:23]} 17. fxe5 {[%emt 0:00:46]} g5 {[%emt 0:00:06]} 18. exd6 {[%emt 0:00:42]} Nxb3+ {[%emt 0:00:25]} 19. cxb3 {[%emt 0:00:04]} Qxd6 {[%emt 0:00:02]} 20. Bxg7 {[%emt 0:00:43]} Qxd2+ {[%emt 0:00:02]} 21. Rxd2 {[%emt 0:00:02]} Kxg7 {[%emt 0:00:01]} 22. Re1 {[%emt 0:00:55]} Rfe8 {[%emt 0:00:01]} 23. g4 {[%emt 0:01:03]} Re5 {[%emt 0:00:08]} 24. Rf2 {[%emt 0:00:41]} Bd7 {[%emt 0:00:31]} 25. Rg2 {[%emt 0:00:41]} Rae8 {[%emt 0:00:08]} 26. Kd2 {[%emt 0:00:33]} Bc6 {[%emt 0:00:01]} 27. Rge2 {[%emt 0:00:10]} Bd7 {[%emt 0:00:04]} 28. Rg2 {[%emt 0:00:03]} Bc6 {[%emt 0:00:00]} 29. Rge2 {[%emt 0:00:12]} Bd7 {[%emt 0:00:02]} 30. Rg2 {[%emt 0:01:11]} 1/2-1/2

[Event "European Corporate Championship 2022"]
[Site "Rotterdam"]
[Date "2022.06.18"]
[Round "2.17"]
[White "Vistisen, Lars"]
[Black "Konijn, Bart"]
[Result "0-1"]
[ECO "C45"]
[WhiteElo "2080"]
[BlackElo "2224"]
[Annotator "TA"]
[PlyCount "74"]
[EventDate "2022.06.18"]
[EventType "team-tourn"]
[EventCountry "NED"]
[SourceTitle "playchess.com"]
[Source "ChessBase"]
[SourceQuality "1"]
[TimeControl "900+5"]

{[%evp 15,74,-34,-20,-66,-63,-102,-106,-115,-96,-108,-98,-91,-52,-56,-52,-76,-2,-99,-22,-33,2,0,28,28,71,82,61,39,37,38,99,37,54,53,74,51,60,56,114,112,101,108,95,95,91,0,0,0,0,0,0,0,0,-54,-34,-25,-27,-29,-30,-29977,-29977]} 1. e4 {[%emt 0:00:03]} e5 {[%emt 0:00:01]} 2. Nf3 {[%emt 0:00:01]} Nc6 {[%emt 0:00:01]} 3. d4 {[%emt 0:00:02]} exd4 {[%emt 0:00:02]} 4. Nxd4 {[%emt 0:00:01]} Nf6 {[%emt 0:00:03]} 5. Nxc6 {[%emt 0:00:02]} bxc6 {[%emt 0:00:03]} 6. e5 {[%emt 0:00:02]} Qe7 {[%emt 0:00:09]} 7. Qe2 {[%emt 0:00:02]} Nd5 {[%emt 0:00:03]} 8. Nd2 {[%emt 0:00:02]} g6 {[%emt 0:00:43]} 9. g3 {[%emt 0:00:22] C45: Scotch Game.} (9. Ne4 $11 {feels stronger.}) 9... Bg7 $15 {[%emt 0:01:04] [#]} 10. f4 $146 {[%emt 0:00:21]} ({Predecessor:} 10. Nf3 Qb4+ 11. Nd2 a5 12. c4 Ba6 13. Bh3 O-O-O 14. f4 f5 15. a3 Qc5 16. Rb1 d6 17. b4 axb4 {0-1 (17) Almanza,R (2168)-Manrique,F (1973) Bogota 2013}) 10... O-O {[%emt 0:01:02]} 11. Bg2 {[%emt 0:00:12] Black is better.} f6 {[%emt 0:00:45]} 12. exf6 {[%emt 0:06:27]} Qxe2+ {[%emt 0:01:07]} ({Stronger than} 12... Bxf6 13. Qxe7 Nxe7 14. c3 $15) 13. Kxe2 {[%emt 0:00:01]} Bxf6 {[%emt 0:00:42] Threatens to win with ...Ba6+.} 14. c3 {[%emt 0:00:48]} Ba6+ {[%emt 0:03:45]} 15. Kf2 {[%emt 0:00:52] [#]} Rae8 {[%emt 0:00:08]} ({Black should try} 15... g5 $1 $17 16. Ne4 Be7) 16. Nb3 {[%emt 0:02:08]} (16. Ne4 $1 $11 {remains equal.}) 16... d6 {[%emt 0:03:58] Black is much more active. The white rooks are badly placed.} (16... Re2+ $17 17. Kg1 Rfe8) 17. Bf3 $11 {[%emt 0:02:15]} Re7 {[%emt 0:01:13]} 18. Bd2 {[%emt 0:00:08]} (18. Rd1 {with more complications.} Rfe8 19. Bd2 Bc8 20. Na5) 18... Nb6 {[%emt 0:00:37]} 19. Rae1 {[%emt 0:00:21]} d5 {[%emt 0:00:23]} 20. Rxe7 {[%emt 0:00:48]} Bxe7 {[%emt 0:00:01]} 21. h4 {[%emt 0:00:03]} Nc4 {[%emt 0:00:07]} 22. Bc1 {[%emt 0:00:02]} Nd6 {[%emt 0:00:12]} (22... Bc8 $14) 23. Be3 {[%emt 0:00:42]} ({White should play} 23. Na5 $16) 23... Nf5 {[%emt 0:00:15]} 24. Bxa7 {[%emt 0:00:26]} Bc4 {[%emt 0:00:08]} 25. Bc5 {[%emt 0:00:35] Black must now prevent Bxe7.} Ra8 {[%emt 0:00:17]} 26. Bxe7 {[%emt 0:00:19] Ba3 is the strong threat.} Nxe7 {[%emt 0:00:02]} ({Better is} 26... Rxa2 $14 27. Ba3 Bxb3) 27. Nd2 $16 {[%emt 0:00:08]} Rxa2 {[%emt 0:00:06]} 28. Nxc4 {[%emt 0:00:03]} dxc4 {[%emt 0:00:01][%mdl 4096] Endgame KRB-KRN} 29. Rb1 {[%emt 0:00:01]} Nd5 {[%emt 0:00:06]} 30. Bxd5+ {[%emt 0:00:12]} (30. Be2 $16) 30... cxd5 {[%emt 0:00:01] KR-KR} 31. Ke3 {[%emt 0:00:00]} Kf7 {[%emt 0:00:02]} 32. Kd4 {[%emt 0:00:01]} Ke6 {[%emt 0:00:02]} 33. Kc5 {[%emt 0:00:07]} Ra5+ {[%emt 0:00:35]} 34. Kd4 {[%emt 0:00:02]} (34. Kc6 $11) 34... Kd6 {[%emt 0:00:02]} 35. g4 {[%emt 0:00:04]} c5+ {[%emt 0:00:01]} 36. Ke3 {[%emt 0:00:02]} Ra8 {[%emt 0:00:01]} 37. Ra1 $2 {[%emt 0:00:10][%mdl 8192] [#]} Rxa1 {[%emt 0:00:02] Weighted Error Value: White=0.44/Black=0.20 (precise)} 0-1

[Event "European Corporate Championship 2022"]
[Site "Rotterdam"]
[Date "2022.06.18"]
[Round "2.18"]
[White "Schelvis, Richard"]
[Black "Heer, Stephan"]
[Result "1-0"]
[ECO "A44"]
[WhiteElo "2157"]
[BlackElo "2047"]
[Annotator "TA"]
[PlyCount "72"]
[EventDate "2022.06.18"]
[EventType "team-tourn"]
[EventCountry "NED"]
[SourceTitle "playchess.com"]
[Source "ChessBase"]
[SourceQuality "1"]
[TimeControl "900+5"]

{[%evp 9,72,-11,21,-25,1,0,12,-33,14,-14,20,-18,-20,-32,-29,-26,-5,-8,-6,-14,-5,-6,-11,-14,0,0,108,13,144,132,167,166,204,190,171,181,241,240,418,390,355,296,355,369,362,362,368,368,366,322,334,318,326,328,393,393,541,541,522,458,540,529,515,510,498]} 1. d4 {[%emt 0:00:01]} c5 {[%emt 0:00:09]} 2. d5 {[%emt 0:00:10]} e5 {[%emt 0:00:01]} 3. dxe6 {[%emt 0:00:16]} fxe6 {[%emt 0:00:01]} 4. g3 {[%emt 0:00:03]} Nf6 {[%emt 0:00:14]} 5. Bg2 {[%emt 0:00:02]} Be7 {[%emt 0:01:03]} 6. Nf3 {[%emt 0:00:10] A44: Semi-Benoni.} (6. c4 $142) 6... O-O {[%emt 0:00:30]} 7. O-O {[%emt 0:00:06]} Nc6 {[%emt 0:00:33]} 8. c4 {[%emt 0:00:19] The position is equal.} d6 {[%emt 0:00:33]} (8... d5 $15) 9. Nc3 {[%emt 0:00:07]} a6 {[%emt 0:00:23]} (9... d5 {feels hotter.} 10. cxd5 exd5 11. e4 dxe4 12. Ng5 Qxd1 13. Rxd1 Bg4) 10. e4 {[%emt 0:00:49]} Rb8 {[%emt 0:01:11] [#]} 11. Bf4 $146 {[%emt 0:01:29]} ({Predecessor:} 11. Qe2 Nd4 12. Qd3 e5 13. Nd5 Nxd5 14. cxd5 b5 15. b3 Nxf3+ 16. Bxf3 Bg5 17. Bg2 Bxc1 18. Raxc1 Bg4 19. h3 Bh5 20. Rc2 {½-½ (20) Kapanen,K (1847)-Paulasto,T (1890) Finland 2018}) 11... e5 {[%emt 0:01:17]} 12. Bg5 {[%emt 0:00:29]} Nd4 {[%emt 0:01:07]} 13. Bxf6 {[%emt 0:01:29]} Bxf6 {[%emt 0:00:10]} 14. Nxd4 {[%emt 0:00:18]} cxd4 {[%emt 0:00:17]} 15. Nd5 {[%emt 0:00:02]} Be6 {[%emt 0:00:27]} 16. b4 {[%emt 0:00:32]} b5 {[%emt 0:00:35]} 17. c5 {[%emt 0:00:21]} Re8 {[%emt 0:01:46]} (17... dxc5 $11 18. bxc5 Rc8) 18. Rc1 {[%emt 0:00:31]} (18. c6 $16 {Threatens to win with c7.} Rc8 19. Qc2) 18... Rc8 {[%emt 0:01:01] White now steadily converts the win.} (18... dxc5 $1 $11 19. Rxc5 Rc8) 19. c6 $16 {[%emt 0:01:19] White is more active.} Bxd5 {[%emt 0:00:34]} 20. exd5 {[%emt 0:00:02]} e4 {[%emt 0:00:43]} 21. Bh3 {[%emt 0:00:38]} Rc7 {[%emt 0:00:24]} 22. Be6+ {[%emt 0:00:09]} Kh8 {[%emt 0:00:56]} (22... Rxe6 $142 23. dxe6 d5) 23. Re1 {[%emt 0:00:31]} Rxe6 $2 {[%emt 0:00:31] [#]} (23... e3 {was necessary.} 24. Rc2 (24. fxe3 dxe3 25. Rc2 Qa8 $18) 24... exf2+ 25. Rxf2 Be5) 24. dxe6 $18 {[%emt 0:00:02]} d5 {[%emt 0:00:01]} 25. a4 {[%emt 0:02:02]} Qd6 {[%emt 0:00:06]} 26. axb5 {[%emt 0:00:22]} axb5 {[%emt 0:00:02]} 27. Rc5 {[%emt 0:00:57]} Qxe6 {[%emt 0:00:21]} 28. Qh5 {[%emt 0:01:17]} Rxc6 {[%emt 0:00:50]} 29. Qxd5 {[%emt 0:00:03]} Qxd5 {[%emt 0:00:25]} 30. Rxd5 {[%emt 0:00:01][%mdl 4096] [#] Endgame Strongly threatening Rc5. KRR-KRB} Re6 {[%emt 0:00:45]} 31. Rxb5 {[%emt 0:00:01] Intending Rb8+ and mate.} h6 {[%emt 0:00:02]} 32. Rd5 {[%emt 0:00:19]} Rb6 {[%emt 0:00:28]} 33. b5 {[%emt 0:00:06] White is clearly winning.} Re6 {[%emt 0:00:10]} 34. h4 {[%emt 0:00:11]} Kh7 {[%emt 0:00:06]} 35. Kg2 {[%emt 0:00:05]} Kg6 {[%emt 0:00:12]} 36. g4 {[%emt 0:00:04]} d3 {[%emt 0:00:11] Weighted Error Value: White=0.19 (very precise) /Black=0.46} 1-0

[Event "European Corporate Championship 2022"]
[Site "Rotterdam"]
[Date "2022.06.18"]
[Round "2.19"]
[White "Liefrink, Feike"]
[Black "Jap Tjoen San, Linda"]
[Result "0-1"]
[ECO "C41"]
[WhiteElo "1927"]
[BlackElo "2045"]
[Annotator "NA RC"]
[PlyCount "70"]
[EventDate "2022.06.18"]
[EventType "team-tourn"]
[EventCountry "NED"]
[SourceTitle "playchess.com"]
[Source "ChessBase"]
[SourceQuality "1"]
[TimeControl "900+5"]

1. Nc3 {[%emt 0:00:02]} d6 {[%emt 0:00:10]} 2. Nf3 {[%emt 0:00:08]} Nf6 {[%emt 0:00:10]} 3. d4 {[%emt 0:00:16]} Nbd7 {[%emt 0:00:12]} 4. e4 {[%emt 0:00:06]} e5 {[%emt 0:00:07]} 5. Bc4 {[%emt 0:00:21]} Be7 {[%emt 0:00:24]} 6. O-O {[%emt 0:00:05]} O-O {[%emt 0:00:02]} 7. a4 {[%emt 0:00:24]} c6 {[%emt 0:00:26]} 8. a5 {[%emt 0:00:25]} h6 {[%emt 0:00:34]} 9. Re1 {[%emt 0:00:30]} Qc7 {[%emt 0:00:44]} 10. Bb3 {[%emt 0:01:12]} Re8 {[%emt 0:00:35]} 11. d5 {[%emt 0:01:01]} Nc5 {[%emt 0:00:07]} 12. Bc4 {[%emt 0:00:41]} Bg4 {[%emt 0:00:20]} 13. Qe2 {[%emt 0:00:38]} Bf8 {[%emt 0:02:10]} 14. b4 {[%emt 0:01:12]} Ncd7 {[%emt 0:00:03]} 15. Bb2 {[%emt 0:00:11]} Rac8 {[%emt 0:00:52]} 16. Bb3 {[%emt 0:00:12]} a6 {[%emt 0:00:09]} 17. Rad1 {[%emt 0:00:16]} cxd5 {[%emt 0:00:23]} 18. Nxd5 {[%emt 0:01:21]} Nxd5 {[%emt 0:00:02]} 19. Rxd5 {[%emt 0:00:13]} Nf6 {[%emt 0:00:04]} 20. Rdd1 {[%emt 0:00:11]} d5 {[%emt 0:02:17]} 21. Bxd5 {[%emt 0:01:14]} Bxb4 {[%emt 0:00:04]} 22. Rf1 {[%emt 0:01:23]} Bxa5 {[%emt 0:00:03]} 23. c4 {[%emt 0:00:04]} Bb4 {[%emt 0:01:34]} 24. h3 {[%emt 0:00:28]} Bxf3 {[%emt 0:00:10]} 25. Qxf3 {[%emt 0:00:05]} a5 {[%emt 0:00:05]} 26. Qb3 {[%emt 0:00:22]} b6 {[%emt 0:00:29]} 27. Qa4 {[%emt 0:01:26]} Re7 {[%emt 0:01:10]} 28. Rc1 {[%emt 0:00:06]} Qc5 {[%emt 0:00:07]} 29. Kh1 {[%emt 0:00:17]} Bd2 {[%emt 0:00:22]} 30. Rcd1 {[%emt 0:00:20]} Bb4 {[%emt 0:00:07]} 31. Rc1 {[%emt 0:00:02]} Qc7 {[%emt 0:00:23]} 32. Qb3 {[%emt 0:00:22]} Qd8 {[%emt 0:00:28]} 33. Rfd1 {[%emt 0:00:29]} Qe8 {[%emt 0:00:02]} 34. Ra1 {[%emt 0:00:34]} Nd7 {[%emt 0:00:21]} 35. Bb7 {[%emt 0:00:25]} Nc5 {[%emt 0:00:05]} 0-1